bitfinex/quotes_SOLUSD_20260203
["timestamp","ask_amount","ask_price","bid_price","bid_amount"]
[1770099148971,3.61457587,103.17,103.15,10.19452133]
[1770099150071,3.61457587,103.17,103.15,0.5]
[1770099150453,3.61457587,103.17,103.15,10.19454329]
[1770099151170,3.61457587,103.18,103.15,10.19454329]
[1770099151362,3.61457587,103.19,103.16,0.5]
[1770099152571,3.61457587,103.19,103.16,10.19297806]
[1770099153465,3.61457587,103.18,103.16,10.19297806]
[1770099153662,9.69086842,103.19,103.15,34.43059636]
[1770099153863,3.61457587,103.17,103.15,9.69404765]
[1770099156161,3.61457587,103.17,103.15,10.19404765]
[1770099157681,3.61457587,103.18,103.15,10.19404765]
[1770099158580,3.61457587,103.19,103.16,0.5]
[1770099158989,3.61457587,103.2,103.16,0.5]
[1770099159562,3.61457587,103.2,103.17,10.19274013]
[1770099159878,3.61457587,103.22,103.18,0.5]
[1770099160085,3.61457587,103.2,103.17,10.19274013]
[1770099160291,3.61457587,103.19,103.17,0.5]
[1770099161363,3.61457587,103.18,103.16,10.1932446]
[1770099161983,9.69049696,103.2,103.16,10.1932446]
[1770099162283,3.61457587,103.19,103.17,0.5]
[1770099162488,3.61457587,103.19,103.16,10.1932446]
[1770099163595,3.61457587,103.18,103.15,10.1941153]
[1770099164094,3.61457587,103.17,103.15,10.1941153]
[1770099164269,3.61457587,103.17,103.15,9.6941153]
[1770099164758,3.61457587,103.17,103.14,10.19504996]
[1770099165592,3.61457587,103.17,103.15,9.69458719]
[1770099166492,9.69143863,103.19,103.15,9.69458719]
[1770099166787,3.61457587,103.17,103.15,9.69458719]
[1770099166990,9.69143863,103.19,103.15,10.19458719]
[1770099167188,3.61457587,103.18,103.15,10.19458719]
[1770099168774,3.61457587,103.17,103.15,10.19458719]
[1770099169173,9.69100276,103.19,103.15,10.19458719]
[1770099169174,3.61457587,103.18,103.15,10.19458719]
[1770099169577,3.61457587,103.17,103.15,0.5]
[1770099169898,3.61457587,103.17,103.15,9.69441638]
[1770099170597,3.61457587,103.17,103.15,10.19441638]
[1770099175183,9.69139396,103.19,103.15,10.19441638]
[1770099175184,3.61457587,103.18,103.15,10.19441638]
[1770099176697,3.50849996,103.18,103.15,10.19441638]
[1770099178480,3.61457587,103.17,103.15,10.19441638]
[1770099178981,3.61457587,103.19,103.16,0.5]
[1770099179796,3.61457587,103.2,103.16,0.5]
[1770099180591,3.61457587,103.2,103.17,10.19274013]
[1770099180991,3.61457587,103.22,103.18,0.5]
[1770099181301,3.61457587,103.21,103.18,0.5]
[1770099182195,3.61457587,103.21,103.19,9.69086151]
[1770099182590,3.61457587,103.21,103.18,10.19129333]
[1770099183002,9.68710646,103.23,103.18,10.19129333]
[1770099183307,3.61457587,103.21,103.18,10.19129333]
[1770099187298,3.61457587,103.21,103.18,9.69129333]
[1770099187494,3.61457587,103.2,103.18,9.69129333]
[1770099188998,3.61457587,103.19,103.16,0.5]
[1770099189193,3.61457587,103.18,103.16,10.19325496]
[1770099190716,3.61457587,103.17,103.13,24.73953433]
[1770099190894,3.61457587,103.16,103.14,0.5]
[1770099191093,3.61457587,103.17,103.14,10.19486899]
[1770099193718,9.69086151,103.19,103.15,0.5]
[1770099194010,3.61457587,103.18,103.15,0.5]
[1770099196521,3.61457587,103.17,103.15,0.5]
[1770099196698,3.61457587,103.17,103.14,34.43376757]
[1770099197209,3.61457587,103.17,103.15,9.6945026]
[1770099197805,3.61457587,103.17,103.15,10.1945026]
[1770099198005,3.61457587,103.18,103.15,10.1945026]
[1770099198193,36.61064002,103.2,103.16,0.5]
[1770099198194,3.61457587,103.19,103.16,0.5]
[1770099198397,3.61457587,103.18,103.16,0.5]
[1770099198597,13.30521589,103.2,103.17,0.5]
[1770099200298,3.61457587,103.2,103.17,10.1922107]
[1770099200910,3.61457587,103.19,103.17,10.1922107]
[1770099206428,3.61399951,103.19,103.17,10.1922107]
[1770099212225,3.61399951,103.19,103.15,24.23654871]
[1770099212226,3.61399951,103.19,103.16,9.69349892]
[1770099212420,3.61399951,103.18,103.16,10.19349892]
[1770099214335,3.61399951,103.18,103.16,9.69349892]
[1770099214552,3.61399951,103.19,103.17,0.5]
[1770099216232,3.61399951,103.19,103.18,0.5]
[1770099216419,3.61399951,103.19,103.17,10.19218585]
[1770099220039,3.61399951,103.19,103.17,9.69218585]
[1770099220242,3.61399951,103.19,103.17,10.19218585]
[1770099222443,3.61399951,103.19,103.17,0.5]
[1770099223423,3.61399951,103.19,103.17,10.19271844]
[1770099223948,3.61399951,103.2,103.17,10.19271844]
[1770099224441,3.61399951,103.2,103.18,0.5]
[1770099226739,9.689516,103.21,103.18,0.5]
[1770099226945,3.61399951,103.2,103.18,10.19174979]
[1770099227124,3.61399951,103.2,103.18,0.5]
[1770099227624,3.61399951,103.2,103.17,10.19224504]
[1770099228037,3.61399951,103.19,103.17,10.19224504]
[1770099233354,3.61399951,103.19,103.17,9.69224504]
[1770099233559,3.61399951,103.19,103.17,10.19224504]
[1770099233743,3.61399951,103.2,103.18,0.5]
[1770099234753,3.61399951,103.19,103.17,10.19224504]
[1770099235959,9.689516,103.21,103.17,10.19224504]
[1770099236144,3.61399951,103.19,103.17,10.19224504]
[1770099236458,3.61399951,103.19,103.18,0.5]
[1770099236840,3.61399951,103.19,103.17,9.69224504]
[1770099237037,0.48805265,103.18,103.17,9.69224504]
[1770099237238,4.10205216,103.19,103.17,9.69224504]
[1770099238049,4.10205216,103.19,102.94,19.1076068]
[1770099238050,0.48805265,103.19,103.14,3.89832265]
[1770099238651,4.10205216,103.2,103.14,3.89832265]
[1770099238962,4.10205216,103.2,103.15,0.49246858]
[1770099240155,4.10205216,103.2,103.17,0.49246858]
[1770099241761,4.10205216,103.19,103.16,34.4203476]
[1770099241958,4.10205216,103.17,103.14,10.18770189]
[1770099242253,4.10205216,103.16,103.14,0.49246858]
[1770099243261,3.61399951,103.16,103.14,0.49246858]
[1770099245666,3.61399951,103.16,103.14,10.18782939]
[1770099251260,0.48805265,103.17,103.14,9.69536081]
[1770099251460,4.10205216,103.17,103.15,0.49246858]
[1770099252051,4.10205216,103.17,103.14,10.18782939]
[1770099252661,4.10205216,103.17,103.13,33.93748912]
[1770099252864,4.10205216,103.17,103.14,0.49246858]
[1770099256067,4.10205216,103.17,103.14,10.18767058]
[1770099256471,3.61399951,103.17,103.15,0.49246858]
[1770099256767,4.10205216,103.17,103.15,0.49246858]
[1770099257568,3.61399951,103.17,103.15,0.49246858]
[1770099258270,3.61399951,103.17,103.15,10.18684624]
[1770099258865,4.10205216,103.17,103.15,10.18684624]
[1770099259086,4.10205216,103.17,103.15,0.49246858]
[1770099259370,4.10205216,103.17,103.15,10.18707949]
[1770099259868,4.10205216,103.17,103.15,9.69461091]
[1770099260572,4.10205216,103.17,103.15,0.45828667]
[1770099263376,4.10205216,103.17,103.15,10.15265655]
[1770099263575,3.61399951,103.16,103.15,10.15265655]
[1770099265273,4.0876454,103.16,103.14,10.15338091]
[1770099265969,3.61399951,103.15,103.14,10.15338091]
[1770099268385,3.6164783,103.15,103.14,10.15338091]
[1770099272076,4.09012419,103.15,103.12,10.15511481]
[1770099272382,3.6164783,103.13,103.12,10.15561994]
[1770099273080,0.47364589,103.12,103.1,0.45828667]
[1770099273271,4.09012419,103.12,103.1,0.45828667]
[1770099273679,4.09012419,103.12,103.1,10.15706161]
[1770099274587,3.6164783,103.12,103.1,10.15706161]
[1770099276080,4.09012419,103.12,103.1,0.45828667]
[1770099276702,3.6164783,103.12,103.1,10.15747941]
[1770099277073,3.6164783,103.13,103.11,0.45828667]
[1770099277383,4.09012419,103.14,103.11,0.45828667]
[1770099277683,0.47364589,103.15,103.12,0.45828667]
[1770099277884,0.47364589,103.16,103.13,0.45828667]
[1770099278089,0.47364589,103.16,103.14,0.45828667]
[1770099279294,0.47364589,103.15,103.13,9.69569229]
[1770099279492,4.09012419,103.15,103.13,10.15397896]
[1770099279693,4.09012419,103.15,103.13,9.69569229]
[1770099280277,4.09012419,103.15,103.13,0.45828667]
[1770099282183,4.09012419,103.15,103.13,10.15457093]
[1770099285585,0.47364589,103.15,103.13,10.15457093]
[1770099291501,4.08801943,103.17,103.15,0.46559958]
[1770099291982,10.16367974,103.18,103.15,0.46559958]
[1770099292185,13.78015804,103.18,103.15,0.46559958]
[1770099292898,4.08801943,103.18,103.15,0.46559958]
[1770099294088,4.08801943,103.18,103.15,10.15983129]
[1770099294289,4.08801943,103.18,103.16,0.46559958]
[1770099295405,0.47154113,103.18,103.16,0.46559958]
[1770099298716,0.47154113,103.18,103.15,10.15983129]
[1770099299219,4.08801943,103.18,103.15,10.15983129]
[1770099300492,0.28432314,103.22,103.15,10.15983129]
[1770099300692,3.6164783,103.18,103.15,0.46559958]
[1770099300889,3.6164783,103.17,103.15,0.48577056]
[1770099301090,3.6164783,103.17,103.14,10.1808698]
[1770099301499,3.6164783,103.2,103.14,10.1808698]
[1770099301812,3.6164783,103.17,103.14,9.69509924]
[1770099302287,3.6164783,103.17,103.14,10.1808698]
[1770099302484,3.64493717,103.16,103.13,10.18194005]
[1770099302700,3.6164783,103.15,103.13,10.18194005]
[1770099303106,3.64493717,103.15,103.13,0.48577056]
[1770099303307,3.64493717,103.14,103.11,0.48577056]
[1770099303605,3.64493717,103.14,103.09,27.8655298]
[1770099303606,3.64493717,103.13,103.1,0.48577056]
[1770099303807,3.6164783,103.12,103.1,0.48577056]
[1770099304200,3.6164783,103.12,103.1,10.18482556]
[1770099305299,3.64493717,103.13,103.1,10.18482556]
[1770099305811,3.6164783,103.12,103.1,10.18482556]
[1770099306513,3.64493717,103.16,103.12,0.48577056]
[1770099306811,3.64493717,103.17,103.13,0.48577056]
[1770099307012,13.33716603,103.18,103.14,0.48577056]
[1770099307203,3.6164783,103.19,103.15,0.48577056]
[1770099307709,3.64493717,103.2,103.15,3.6164783]
[1770099307927,3.64493717,103.2,103.16,0.48577056]
[1770099308501,3.64493717,103.19,103.16,10.17886105]
[1770099309304,3.64493717,103.19,103.16,0.48577056]
[1770099309821,3.64493717,103.19,103.16,10.17933398]
[1770099310312,9.69002536,103.2,103.15,10.18015504]
[1770099310313,3.64493717,103.18,103.15,10.18015504]
[1770099311426,0.02845887,103.19,103.16,0.48577056]
[1770099311601,3.64493717,103.21,103.17,0.48577056]
[1770099311933,3.64493717,103.23,103.18,0.48577056]
[1770099312623,13.33125716,103.24,103.19,0.48577056]
[1770099312799,3.6164783,103.23,103.19,0.48577056]
[1770099313221,3.64493717,103.23,103.2,9.68992248]
[1770099313424,3.64493717,103.23,103.2,10.17569304]
[1770099314428,3.64493717,103.24,103.21,0.48577056]
[1770099315507,3.6164783,103.25,103.22,0.48577056]
[1770099315735,3.6164783,103.26,103.22,0.48577056]
[1770099316222,3.8164783,103.27,103.23,0.48577056]
[1770099317625,3.8164783,103.27,103.24,0.48577056]
[1770099318135,3.6164783,103.25,103.23,0.48577056]
[1770099318626,3.64493717,103.26,103.23,10.17246928]
[1770099318831,3.6164783,103.26,103.24,0.48577056]
[1770099319032,3.84493717,103.27,103.24,0.48577056]
[1770099319622,0.2,103.27,103.25,0.48577056]
[1770099319922,3.8164783,103.27,103.24,10.17138729]
[1770099321118,3.64493717,103.26,103.22,0.48577056]
[1770099321526,3.6164783,103.26,103.23,10.17238779]
[1770099321823,3.6164783,103.26,103.24,0.48577056]
[1770099323608,0.2,103.27,103.24,10.17178343]
[1770099323809,3.8164783,103.27,103.25,0.48577056]
[1770099324021,3.8164783,103.27,103.24,10.17178343]
[1770099324330,3.6164783,103.26,103.24,0.48577056]
[1770099324723,9.91192291,103.27,103.24,10.17191156]
[1770099324724,3.84493717,103.27,103.24,10.17191156]
[1770099326340,3.8164783,103.27,103.25,0.48577056]
[1770099326838,0.2,103.27,103.25,0.48577056]
[1770099327033,3.8164783,103.27,103.25,0.48577056]
[1770099328609,3.80827452,103.27,103.25,0.48577056]
[1770099329616,3.80827452,103.27,103.25,10.17095433]
[1770099331817,3.80827452,103.27,103.25,0.48577056]
[1770099332229,3.80827452,103.27,103.25,10.17099202]
[1770099333707,0.22845887,103.28,103.27,0.48577056]
[1770099333708,0.02158521,103.28,103.27,0.48577056]
[1770099334117,0.02158521,103.28,103.27,10.16912487]
[1770099336935,0.02158521,103.28,103.25,27.82134958]
[1770099336936,0.02158521,103.28,103.26,10.16989584]
[1770099337140,3.60827452,103.27,103.25,10.17070577]
[1770099342220,0.05004408,103.28,103.25,10.17070577]
[1770099342419,3.60827452,103.27,103.25,10.17070577]
[1770099342924,3.6583186,103.28,103.25,10.17070577]
[1770099343941,0.02158521,103.28,103.26,0.48577056]
[1770099344146,3.6583186,103.28,103.25,10.17070577]
[1770099344327,3.60827452,103.27,103.25,10.17070577]
[1770099344948,0.17895171,103.25,103.22,9.68729913]
[1770099345239,3.60827452,103.25,103.23,9.687053]
[1770099345946,3.78722623,103.24,103.21,9.68898362]
[1770099347140,3.60827452,103.23,103.21,0.47206188]
[1770099347339,3.60827452,103.22,103.21,0.47206188]
[1770099347545,3.60827452,103.22,103.2,10.16156856]
[1770099347848,3.60827452,103.22,103.21,0.47206188]
[1770099350553,3.60827452,103.22,103.2,0.45256352]
[1770099352452,3.78722623,103.21,103.18,10.18045027]
[1770099352744,3.60827452,103.19,103.17,10.18094466]
[1770099353141,3.78722623,103.2,103.17,10.18094466]
[1770099354841,3.78722623,103.19,103.16,10.18185664]
[1770099356560,3.60827452,103.18,103.15,0.48864954]
[1770099356941,3.60827452,103.17,103.15,0.48864954]
[1770099358251,3.60827452,103.17,103.15,10.18310927]
[1770099358769,4.27527085,103.21,103.17,0.48864954]
[1770099358954,3.60827452,103.2,103.17,0.48864954]
[1770099359552,18.04121327,103.21,103.17,0.48864954]
[1770099360144,4.0768125,103.19,103.16,0.48864954]
[1770099362759,0.46853798,103.19,103.16,10.1820161]
[1770099364472,4.0768125,103.19,103.16,10.1820161]
[1770099364976,13.767811,103.19,103.16,0.48864954]
[1770099365284,3.60827452,103.17,103.14,9.69525612]
[1770099365572,4.0768125,103.16,103.13,10.18465881]
[1770099365764,4.0768125,103.14,103.12,0.1]
[1770099366448,4.0768125,103.15,103.12,10.28592782]
[1770099366764,3.60827452,103.14,103.12,10.28592782]
[1770099366947,3.60827452,103.14,103.12,0.58864954]
[1770099368271,0.46853798,103.15,103.12,0.58864954]
[1770099368460,3.60827452,103.14,103.12,10.28596802]
[1770099368870,4.0768125,103.13,103.12,0.1]
[1770099369177,4.0768125,103.13,103.1,0.48864954]
[1770099369366,3.60827452,103.12,103.1,0.48864954]
[1770099369572,4.0768125,103.13,103.1,0.48864954]
[1770099369771,3.60827452,103.13,103.1,0.48864954]
[1770099369954,3.60827452,103.14,103.1,0.48864954]
[1770099370867,4.0768125,103.14,103.1,0.48864954]
[1770099371169,10.16357705,103.15,103.12,0.48864954]
[1770099371367,4.0768125,103.15,103.12,0.48864954]
[1770099373873,4.0768125,103.15,103.12,10.18562832]
[1770099376271,13.77004587,103.17,103.13,0.48864954]
[1770099376479,13.76904318,103.18,103.14,0.48864954]
[1770099376683,4.0768125,103.18,103.14,0.48864954]
[1770099376857,3.60827452,103.18,103.15,0.48864954]
[1770099377059,13.76818473,103.19,103.15,0.48864954]
[1770099377467,0.46853798,103.18,103.15,10.18296063]
[1770099377867,4.0768125,103.18,103.15,10.18296063]
[1770099378068,3.60827452,103.19,103.16,0.48864954]
[1770099378879,4.0768125,103.2,103.16,0.48864954]
[1770099379077,4.0768125,103.2,103.17,0.48864954]
[1770099379478,13.76681772,103.2,103.17,0.48864954]
[1770099380281,3.60827452,103.19,103.17,0.48864954]
[1770099383189,4.0768125,103.2,103.17,10.18133701]
[1770099384283,4.08158695,103.21,103.18,0.48677171]
[1770099384586,0.47331243,103.21,103.18,0.48677171]
[1770099385488,4.08158695,103.21,103.18,10.17839205]
[1770099387577,0.47331243,103.21,103.19,0.48677171]
[1770099387998,4.08158695,103.21,103.18,10.17839205]
[1770099388372,4.08564519,103.21,103.18,10.17839205]
[1770099388565,0.47331243,103.21,103.18,10.17839205]
[1770099389097,13.77298584,103.23,103.19,0.48677171]
[1770099389387,13.77204691,103.24,103.2,0.48677171]
[1770099389686,13.77204691,103.24,103.21,0.48677171]
[1770099390084,3.61233276,103.23,103.21,0.48677171]
[1770099390675,3.61233276,103.22,103.2,0.48677171]
[1770099393384,3.61233276,103.23,103.21,0.48677171]
[1770099393588,13.77204691,103.24,103.21,0.48677171]
[1770099393987,3.61233276,103.23,103.21,0.48677171]
[1770099395492,10.15971415,103.24,103.21,0.48677171]
[1770099395699,3.61233276,103.23,103.21,0.48677171]
[1770099396794,3.61233276,103.22,103.2,0.48677171]
[1770099397383,4.08564519,103.23,103.2,10.17654916]
[1770099397781,4.08564519,103.23,103.21,0.48677171]
[1770099398982,3.61233276,103.23,103.21,0.48677171]
[1770099400396,10.15971415,103.24,103.21,0.48677171]
[1770099400702,3.61233276,103.23,103.21,0.48677171]
[1770099400998,10.15971415,103.24,103.21,0.48677171]
[1770099401182,13.77204691,103.24,103.21,0.48677171]
[1770099401981,3.61233276,103.23,103.21,0.48677171]
[1770099402594,4.08564519,103.24,103.21,10.17542501]
[1770099402795,3.61233276,103.23,103.21,10.17542501]
[1770099402983,4.08564519,103.23,103.2,10.17639959]
[1770099403384,4.08564519,103.23,103.21,0.48677171]
[1770099404097,3.61233276,103.23,103.21,0.48677171]
[1770099404998,10.15988861,103.24,103.21,0.48677171]
[1770099405203,13.77222137,103.24,103.21,0.48677171]
[1770099409009,4.08564519,103.23,103.2,10.17639959]
[1770099409303,0.47331243,103.21,103.19,9.69055887]
[1770099409491,4.08564519,103.21,103.19,10.17733058]
[1770099409808,4.08564519,103.21,103.19,9.69055887]
[1770099410112,0.47331243,103.21,103.19,9.69055887]
[1770099410317,0.47331243,103.21,103.19,10.16122597]
[1770099411411,0.47331243,103.21,103.19,0.4706671]
[1770099412516,13.77471832,103.21,103.18,0.46989536]
[1770099414232,4.08564519,103.21,103.18,10.16158527]
[1770099416108,0.48349119,103.19,103.16,0.46989536]
[1770099416328,4.09582395,103.19,103.16,10.16308162]
[1770099416733,4.09582395,103.19,103.17,0.46989536]
[1770099417134,13.78713015,103.19,103.16,0.46989536]
[1770099417514,4.09582395,103.19,103.16,10.16337312]
[1770099418015,4.09582395,103.19,103.16,9.69347776]
[1770099418239,3.61233276,103.17,103.15,0.46989536]
[1770099418536,4.09582395,103.17,103.15,0.46989536]
[1770099420619,3.61233276,103.16,103.15,0.46989536]
[1770099421035,10.17578708,103.18,103.15,0.46989536]
[1770099421221,3.61233276,103.17,103.15,0.46989536]
[1770099422324,3.61233276,103.18,103.16,0.46989536]
[1770099423742,4.09582395,103.17,103.14,10.16508785]
[1770099424424,4.09582395,103.17,103.15,10.16451057]
[1770099426031,4.09582395,103.17,103.15,0.46989536]
[1770099427341,4.09582395,103.17,103.14,10.16493455]
[1770099427956,4.09582395,103.18,103.15,10.16433743]
[1770099428527,4.09582395,103.18,103.16,0.46989536]
[1770099428733,3.61233276,103.18,103.16,0.46989536]
[1770099433548,13.78720504,103.19,103.17,0.46989536]
[1770099433746,3.61233276,103.2,103.17,0.46989536]
[1770099434053,4.09582395,103.2,103.17,0.46989536]
[1770099434549,13.78580538,103.2,103.17,0.46989536]
[1770099435346,4.09582395,103.19,103.17,0.46989536]
[1770099435644,3.61233276,103.19,103.17,0.46989536]
[1770099435945,13.78580538,103.2,103.17,10.16261946]
[1770099438753,3.61233276,103.21,103.18,0.46989536]
[1770099439050,4.09582395,103.22,103.18,0.46989536]
[1770099439648,13.78415732,103.22,103.18,0.46989536]
[1770099439837,4.09582395,103.21,103.18,0.46989536]
[1770099440455,4.09582395,103.21,103.18,10.16119956]
[1770099440837,4.09582395,103.21,103.19,0.45923245]
[1770099443460,0.48349119,103.21,103.19,10.14999894]
[1770099443659,13.79655841,103.22,103.19,10.14999894]
[1770099444460,4.10822504,103.22,103.19,10.14999894]
[1770099446761,4.10822504,103.21,103.19,0.45923245]
[1770099449468,3.61233276,103.2,103.18,0.45923245]
[1770099449660,4.10822504,103.21,103.18,10.15089055]
[1770099450156,4.10822504,103.21,103.19,0.45923245]
[1770099450477,4.10832311,103.21,103.19,0.45923245]
[1770099452257,0.49589228,103.21,103.19,10.15006121]
[1770099452765,4.10832311,103.21,103.19,0.45923245]
[1770099455966,3.61243083,103.21,103.19,0.45923245]
[1770099456171,3.61243083,103.22,103.2,0.45923245]
[1770099456349,4.10832311,103.22,103.2,0.45923245]
[1770099457984,4.10832311,103.22,103.19,10.15006314]
[1770099458955,4.10832311,103.22,103.2,0.45923245]
[1770099460569,3.61243083,103.23,103.2,10.14899399]
[1770099460879,13.79501772,103.24,103.21,0.45923245]
[1770099462571,13.79501772,103.24,103.21,10.14818968]
[1770099462962,13.79501772,103.24,103.21,0.45923245]
[1770099463468,3.61243083,103.22,103.2,0.45923245]
[1770099463669,3.61243083,103.22,103.2,10.14896012]
[1770099464063,4.10832311,103.23,103.2,10.14896012]
[1770099465670,4.10832311,103.23,103.21,0.45923245]
[1770099465897,3.61243083,103.23,103.21,0.45923245]
[1770099466171,4.10832311,103.25,103.21,0.45923245]
[1770099466583,3.61243083,103.26,103.22,0.45923245]
[1770099466755,3.61243083,103.26,103.23,0.45923245]
[1770099466952,13.7920946,103.27,103.23,0.45923245]
[1770099467270,4.10832311,103.27,103.23,0.45923245]
[1770099467878,13.79167923,103.27,103.24,0.45923245]
[1770099468176,3.61243083,103.26,103.24,0.45923245]
[1770099468960,3.61243083,103.25,103.23,10.14615021]
[1770099469257,4.10832311,103.25,103.22,10.14682638]
[1770099469577,4.10832311,103.25,103.23,0.45923245]
[1770099470968,3.61243083,103.25,103.23,0.45923245]
[1770099471369,4.09322261,103.26,103.24,0.48289617]
[1770099471986,4.06358995,103.27,103.24,10.16903597]
[1770099472278,13.74698779,103.27,103.24,10.16903597]
[1770099472664,3.61243083,103.26,103.24,0.48289617]
[1770099472868,3.61243083,103.26,103.23,0.48289617]
[1770099472869,4.06358995,103.26,103.23,0.48289617]
[1770099473066,3.61243083,103.26,103.23,0.48289617]
[1770099473276,4.06358995,103.26,103.23,0.48289617]
[1770099473478,4.06358995,103.25,103.22,10.17043673]
[1770099473678,4.06358995,103.25,103.22,9.68754056]
[1770099473881,3.61243083,103.25,103.23,0.48289617]
[1770099475081,10.13603957,103.26,103.23,0.48289617]
[1770099475289,13.7484704,103.26,103.23,0.48289617]
[1770099477992,0.45115912,103.26,103.23,10.16983149]
[1770099478288,4.06358995,103.26,103.23,10.16983149]
[1770099478475,4.06358995,103.27,103.24,0.48289617]
[1770099478675,13.74702721,103.27,103.24,0.48289617]
[1770099479883,0.45115912,103.26,103.24,0.48289617]
[1770099480694,0.45115912,103.25,103.23,0.48289617]
[1770099481072,4.06358995,103.26,103.23,0.48289617]
[1770099482392,13.74789664,103.26,103.23,0.48289617]
[1770099482593,13.74725318,103.27,103.24,0.48289617]
[1770099482988,4.06358995,103.27,103.24,0.48289617]
[1770099483184,13.29597477,103.27,103.24,0.48289617]
[1770099484081,9.68354394,103.27,103.24,0.48289617]
[1770099484592,0.02158521,103.28,103.26,0.48289617]
[1770099484792,0.02158521,103.28,103.26,3.61243083]
[1770099484994,0.02158521,103.28,103.27,0.48289617]
[1770099485295,6.28019895,103.29,103.27,0.48289617]
[1770099486497,6.28019895,103.29,103.27,10.16609661]
[1770099488196,6.28019895,103.29,103.27,0.48289617]
[1770099489277,6.28019895,103.29,103.28,0.48289617]
[1770099489483,0.2,103.3,103.29,0.48289617]
[1770099489684,0.2,103.3,103.28,0.48289617]
[1770099490600,13.94428475,103.3,103.27,0.48289617]
[1770099490776,3.61243083,103.29,103.27,0.48289617]
[1770099491483,4.26358995,103.3,103.27,10.16605007]
[1770099493593,0.65115912,103.3,103.28,0.48289617]
[1770099494298,0.65115912,103.3,103.27,10.16605007]
[1770099494679,4.26358995,103.3,103.27,10.16605007]
[1770099495101,0.65115912,103.3,103.27,10.16605007]
[1770099495413,0.2,103.3,103.28,0.48289617]
[1770099496084,0.2,103.31,103.28,0.48289617]
[1770099496297,0.2,103.31,103.29,0.48289617]
[1770099497099,4.26358995,103.31,103.28,0.48289617]
[1770099497480,3.81243083,103.31,103.29,0.48289617]
[1770099497902,0.2,103.31,103.29,0.48289617]
[1770099499605,0.45115912,103.29,103.27,0.48289617]
[1770099499806,4.06358995,103.29,103.27,0.48289617]
[1770099500105,4.06358995,103.3,103.28,9.68206058]
[1770099500607,4.06358995,103.3,103.27,10.16575663]
[1770099500901,0.47894073,103.29,103.27,9.68286046]
[1770099501097,0.47894073,103.27,103.24,10.13894228]
[1770099501295,4.09137156,103.27,103.24,10.13894228]
[1770099501684,0.47894073,103.28,103.25,9.6843039]
[1770099501997,0.47894073,103.28,103.26,10.13747876]
[1770099502193,0.47894073,103.29,103.26,10.13747876]
[1770099502505,0.47894073,103.3,103.27,10.13646742]
[1770099503082,0.47894073,103.3,103.27,13.74889825]
[1770099503407,4.09137156,103.3,103.27,10.13646742]
[1770099504105,0.47894073,103.3,103.27,10.13646742]
[1770099505380,13.49205905,103.31,103.27,10.13646742]
[1770099505381,4.29137156,103.31,103.28,0.45321304]
[1770099507013,0.47894073,103.3,103.27,13.74889825]
[1770099507608,0.47894073,103.3,103.28,9.68226451]
[1770099507819,0.67894073,103.31,103.28,10.13547755]
[1770099508310,0.67894073,103.31,103.28,13.74790838]
[1770099508493,0.2,103.31,103.29,0.45321304]
[1770099508697,0.67894073,103.31,103.29,0.45321304]
[1770099509085,0.67894073,103.31,103.29,10.13442233]
[1770099509086,0.2,103.31,103.29,10.13442233]
[1770099511817,0.67894073,103.31,103.29,0.45321304]
[1770099512019,0.67894073,103.31,103.29,10.13466285]
[1770099512193,0.2,103.31,103.29,10.13466285]
[1770099514320,0.67894073,103.31,103.28,13.73972044]
[1770099515191,10.35869541,103.31,103.28,10.13514361]
[1770099515391,10.35869541,103.31,103.28,13.74012909]
[1770099515392,0.67894073,103.31,103.28,13.74012909]
[1770099516015,0.67894073,103.31,103.29,0.45321304]
[1770099519922,0.2,103.31,103.29,10.13465681]
[1770099520516,0.67894073,103.31,103.29,10.13465681]
[1770099521426,0.2,103.31,103.29,10.13465681]
[1770099522028,0.2,103.31,103.3,0.45321304]
[1770099522925,0.2,103.31,103.29,13.73923364]
[1770099525320,0.67894073,103.32,103.3,0.45321304]
[1770099525537,9.87734198,103.34,103.32,0.42104829]
[1770099525538,0.2,103.34,103.32,0.42104829]
[1770099525726,1e-08,103.34,103.32,4.02562512]
[1770099527325,1e-08,103.34,103.33,9.67773153]
[1770099527822,0.47894074,103.34,103.32,13.28290987]
[1770099528210,0.47894074,103.34,103.32,13.70395816]
[1770099528523,1e-08,103.34,103.32,13.28290987]
[1770099528730,7.21424792,103.36,103.33,4.02562512]
[1770099530237,7.21424792,103.36,103.33,13.70286831]
[1770099530427,7.21424792,103.36,103.33,37.89719715]
[1770099530621,6.73530719,103.36,103.35,4.02562512]
[1770099530932,0.2,103.36,103.35,4.02562512]
[1770099531116,0.2,103.36,103.35,0.42104829]
[1770099531316,0.67656917,103.37,103.35,0.42104829]
[1770099532542,0.67656917,103.37,103.35,10.0962426]
[1770099532837,0.66641188,103.38,103.35,13.70081943]
[1770099533222,0.66641188,103.38,103.34,4.02562512]
[1770099533223,0.46641188,103.37,103.34,4.02562512]
[1770099533538,4.07098871,103.37,103.34,10.09743568]
[1770099533736,4.07098871,103.37,103.35,9.67567431]
[1770099533933,0.46641188,103.37,103.35,9.67567431]
[1770099534131,0.46641188,103.37,103.35,10.0967226]
[1770099534439,0.66641188,103.38,103.35,10.0967226]